Workbook

Sheet Salary
A2: التسلسل | B2: الاسم | C2: الكنية | D2: الجنس | E2: تاريخ الميلاد | F2: سنوات الدراسة | G2: الوظيفه | H2: مجال الوظيفه | I2: الراتب عند التعيين | J2: سنة التعيين | L2: سنة التعيين | M2: سنوات الخدمة | O2: ÷2 | P2: الراتب الحالي | Q2: العمر الحالي بالسنةفقط | R2: الترثة( الترفيع) | T2: عدد الكلي للاناث | U2: مجموع الراتب الذكور عند اول تعيين | W2: متوسط الحسابي للراتب الحالي
A3: 1 | B3: احمد | C3: صباغ | D3: ذكر | E3: 19027 | F3: 15 | G3: مدير | H3: انتاج | I3: 14250 | J3: 98 | K3: 1998 | L3: 1998-01-01 | M3: =YEAR(TODAY())-(YEAR(L3)) -> 21 | N3: =M3/2 -> 10.5 | O3: =ROUNDDOWN(N3,0) -> 10 | P3: =Sal_Comul!AX3 -> 50602.39854 | Q3: =DATEDIF(E3,NOW(),"y") -> 67 | R3: =IF(ISEVEN(M3)=FALSE,2019,2020) -> 2019
A4: 2 | B4: سامر | C4: المصري | D4: ذكر | E4: 21328 | F4: 16 | G4: مندوب | H4: تسويق | I4: 10050 | J4: 98 | K4: 1998 | L4: 1998-01-01 | M4: 21 | N4: =M4/2 -> 10.5 | O4: =ROUNDDOWN(N4,0) -> 10 | P4: =Sal_Comul!AX4 -> 35688.00739 | Q4: =DATEDIF(E4,NOW(),"y") -> 61 | R4: =IF(ISEVEN(M4)=FALSE,2019,2020) -> 2019 | T4: =MandF!G5 -> 9 | U4: =Sum_SAL_M!N7 -> 122531.25 | W4: =AVERAGE(P3:P22) -> 47245.14619
A5: 3 | B5: اية | C5: سليمان | D5: أنثى | E5: 13998 | F5: 12 | G5: مندوب | H5: تسويق | I5: 7500 | J5: 95 | K5: 1995 | L5: 1995-01-01 | M5: 24 | N5: 12 | O5: 12 | P5: =Sal_Comul!AX5 -> 29029.79706 | Q5: 81 | R5: 2020
A6: 4 | B6: محمد | C6: علواني | D6: ذكر | E6: 17325 | F6: 12 | G6: أمين صندوق | H6: مشتريات | I6: 7687.5 | J6: 94 | K6: 1994 | L6: 1994-01-01 | M6: 25 | N6: 12.5 | O6: 12 | P6: =Sal_Comul!AX6 -> 32433.54076 | Q6: 72 | R6: 2019
A7: 5 | B7: رعد | C7: المحمد | D7: ذكر | E7: 21444 | F7: 15 | G7: عامل | H7: انتاج | I7: 8700 | J7: 94 | K7: 1994 | L7: 1994-01-01 | M7: 25 | N7: 12.5 | O7: 12 | P7: =Sal_Comul!AX7 -> 36705.2754 | Q7: 60 | R7: 2019
A8: 6 | B8: آمنة | C8: سعدات | D8: أنثى | E8: 22669 | F8: 16 | G8: كاتب | H8: مشتريات | I8: 8700 | J8: 93 | K8: 1993 | L8: 1993-01-01 | M8: 26 | N8: 13 | O8: 13 | P8: =Sal_Comul!AX8 -> 36705.2754 | Q8: 57 | R8: 2020
A9: 7 | B9: سمية | C9: محمد | D9: أنثى | E9: 22426 | F9: 16 | G9: مندوب | H9: تسويق | I9: 12750 | J9: 93 | K9: 1993 | L9: 1993-01-01 | M9: 26 | N9: 13 | O9: 13 | P9: =Sal_Comul!AX9 -> 53792.21395 | Q9: 58 | R9: 2020
A10: 8 | B10: فاطمة | C10: الكحيل | D10: أنثى | E10: 24909 | F10: 12 | G10: عامل | H10: انتاج | I10: 6075 | J10: 93 | K10: 1993 | L10: 1993-01-01 | M10: 26 | N10: 13 | O10: 13 | P10: =Sal_Comul!AX10 -> 25630.40782 | Q10: 51 | R10: 2020
A11: 9 | B11: جمال | C11: عثمان | D11: ذكر | E11: 22687 | F11: 19 | G11: مدير | H11: مشتريات | I11: 18125 | J11: 92 | K11: 1992 | L11: 1992-01-01 | M11: 27 | N11: 13.5 | O11: 13 | P11: =Sal_Comul!AX11 -> 83351.56289 | Q11: 57 | R11: 2019
A12: 10 | B12: سامر | C12: علواني | D12: ذكر | E12: 22456 | F12: 19 | G12: مدير | H12: تسويق | I12: 17187.5 | J12: 92 | K12: 1992 | L12: 1992-01-01 | M12: 27 | N12: 13.5 | O12: 13 | P12: =Sal_Comul!AX12 -> 79040.27516 | Q12: 58 | R12: 2019
A13: 11 | B13: عائشة | C13: الطويل | D13: أنثى | E13: 13938 | F13: 8 | G13: عامل | H13: انتاج | I13: 4050 | J13: 92 | K13: 1992 | L13: 1992-01-01 | M13: 27 | N13: 13.5 | O13: 13 | P13: =Sal_Comul!AX13 -> 18624.76302 | Q13: 81 | R13: 2019
A14: 12 | B14: ماجد | C14: درغام | D14: ذكر | E14: 17705 | F14: 12 | G14: أمين صندوق | H14: تسويق | I14: 7687.5 | J14: 91 | K14: 1991 | L14: 1991-01-01 | M14: 28 | N14: 14 | O14: 14 | P14: =Sal_Comul!AX14 -> 35352.55943 | Q14: 71 | R14: 2020
A15: 13 | B15: ثائر | C15: المحمد | D15: ذكر | E15: 21829 | F15: 16 | G15: مدير | H15: تسويق | I15: 13718.75 | J15: 90 | K15: 1990 | L15: 1990-01-01 | M15: 29 | N15: 14.5 | O15: 14 | P15: =Sal_Comul!AX15 -> 68766.47648 | Q15: 59 | R15: 2019
A16: 14 | B16: سامي | C16: الفارابي | D16: ذكر | E16: 22518 | F16: 14 | G16: عامل | H16: انتاج | I16: 9450 | J16: 90 | K16: 1990 | L16: 1990-01-01 | M16: 29 | N16: 14.5 | O16: 14 | P16: =Sal_Comul!AX16 -> 47368.98061 | Q16: 57 | R16: 2019
A17: 15 | B17: سميرة | C17: المحجوب | D17: أنثى | E17: 23640 | F17: 12 | G17: مندوب | H17: تسويق | I17: 6937.5 | J17: 87 | K17: 1987 | L17: 1987-01-01 | M17: 32 | N17: 16 | O17: 16 | P17: =Sal_Comul!AX17 -> 37904.5831 | Q17: 54 | R17: 2020
A18: 16 | B18: فاطمة | C18: خالد | D18: أنثى | E18: 18641 | F18: 16 | G18: مندوب | H18: تسويق | I18: 6262.5 | J18: 87 | K18: 1987 | L18: 1987-01-01 | M18: 32 | N18: 16 | O18: 16 | P18: =Sal_Comul!AX18 -> 34216.56961 | Q18: 68 | R18: 2020
A19: 17 | B19: دانة | C19: سليمان | D19: أنثى | E19: 25068 | F19: 16 | G19: مدير | H19: تسويق | I19: 16500 | J19: 86 | K19: 1986 | L19: 1986-01-01 | M19: 33 | N19: 16.5 | O19: 16 | P19: =Sal_Comul!AX19 -> 98265.07056 | Q19: 50 | R19: 2019
A20: 18 | B20: باسمة | C20: قدري | D20: أنثى | E20: 14844 | F20: 12 | G20: كاتب | H20: مشتريات | I20: 4312.5 | J20: 82 | K20: 1982 | L20: 1982-01-01 | M20: 37 | N20: 18.5 | O20: 18 | P20: =Sal_Comul!AX20 -> 30513.8727 | Q20: 78 | R20: 2019
A21: 19 | B21: اسماعيل | C21: امجد | D21: ذكر | E21: 12454 | F21: 15 | G21: مندوب | H21: تسويق | I21: 5625 | J21: 82 | K21: 1982 | L21: 1982-01-01 | M21: 37 | N21: 18.5 | O21: 18 | P21: =Sal_Comul!AX21 -> 39800.70352 | Q21: 85 | R21: 2019
A22: 20 | B22: محمد | C22: عوض | D22: ذكر | E22: 23751 | F22: 16 | G22: مدير | H22: انتاج | I22: 10050 | J22: 81 | K22: 1981 | L22: 1981-01-01 | M22: 38 | N22: 19 | O22: 19 | P22: =Sal_Comul!AX22 -> 71110.59029 | Q22: 54 | R22: 2020

Sheet Sal_Comul (hidden)
D1: years Srvs | E1: Copy No only | F1: PVR | AE1: زيادة استثنائية | AX1: الراتب الحالي
H2: راتب | J2: 1980 | K2: =J2+1 -> 1981 | L2: =K2+1 -> 1982 | M2: 1983 | N2: 1984 | O2: 1985 | P2: 1986 | Q2: 1987 | R2: 1988 | S2: 1989 | T2: 1990 | U2: 1991 | V2: 1992 | W2: 1993 | X2: 1994 | Y2: 1995 | Z2: 1996 | AA2: 1997 | AB2: 1998 | AC2: 1999 | AD2: 2000 | AE2: =AC2+1 -> 2000 | AF2: 2001 | AG2: 2002 | AH2: 2003 | AI2: 2004 | AJ2: 2005 | AK2: 2006 | AL2: 2007 | AM2: 2008 | AN2: =AM2+1 -> 2009 | AO2: 2010 | AP2: 2011 | AQ2: 2012 | AR2: 2013 | AS2: 2014 | AT2: 2015 | AU2: 2016 | AV2: 2017 | AW2: 2018 | AX2: 2019 | AZ2: ترقية
A3: 14250 | B3: 98 | C3: 1/1/1998 | D3: 24 | E3: 10 | F3: =Yearly_Rate(A3,0.09,E3) -> 33734.93236 | H3: 14250 | AB3: 14250 | AC3: =AB3 -> 14250 | AD3: 15532.5 | AE3: =AD3+(AD3*0.5) -> 23298.75 | AF3: =AE3 -> 23298.75 | AG3: =AF3+(AF3*0.09) -> 25395.6375 | AH3: =AG3 -> 25395.6375 | AI3: =AH3+(AH3*0.09) -> 27681.24488 | AJ3: =AI3 -> 27681.24488 | AK3: =AJ3+(AJ3*0.09) -> 30172.55691 | AL3: =AK3 -> 30172.55691 | AM3: =AL3+(AL3*0.09) -> 32888.08704 | AN3: =AM3 -> 32888.08704 | AO3: =AN3+(AN3*0.09) -> 35848.01487 | AP3: =AO3 -> 35848.01487 | AQ3: =AP3+(AP3*0.09) -> 39074.33621 | AR3: =AQ3 -> 39074.33621 | AS3: =AR3+(AR3*0.09) -> 42591.02647 | AT3: =AS3 -> 42591.02647 | AU3: =AT3+(AT3*0.09) -> 46424.21885 | AV3: =AU3 -> 46424.21885 | AW3: =AV3+(AV3*0.09) -> 50602.39854 | AX3: =AW3 -> 50602.39854 | AZ3: =IF(AX3=AW3,$AX$2,"2020") -> 2019 | BB3: 33734.93236 | BC3: =IF(AX3=BB3,TRUE,FALSE) -> FALSE | BD3: =TRUNC(AX3,2)=TRUNC(BB3,2) -> FALSE | BE3: =ROUNDDOWN(AX3,2)=ROUNDDOWN(BB3,2) -> FALSE
A4: 10050 | B4: 98 | C4: 1/1/1998 | D4: 21 | E4: 10 | F4: =Yearly_Rate(A4,0.09,E4) -> 23792.00493 | H4: 10050 | AB4: 10050 | AC4: =AB4 -> 10050 | AD4: 10954.5 | AE4: =AD4+(AD4*0.5) -> 16431.75 | AF4: =AE4 -> 16431.75 | AG4: =AF4+(AF4*0.09) -> 17910.6075 | AH4: =AG4 -> 17910.6075 | AI4: =AH4+(AH4*0.09) -> 19522.56217 | AJ4: =AI4 -> 19522.56217 | AK4: =AJ4+(AJ4*0.09) -> 21279.59277 | AL4: =AK4 -> 21279.59277 | AM4: =AL4+(AL4*0.09) -> 23194.75612 | AN4: =AM4 -> 23194.75612 | AO4: =AN4+(AN4*0.09) -> 25282.28417 | AP4: =AO4 -> 25282.28417 | AQ4: =AP4+(AP4*0.09) -> 27557.68975 | AR4: =AQ4 -> 27557.68975 | AS4: =AR4+(AR4*0.09) -> 30037.88182 | AT4: =AS4 -> 30037.88182 | AU4: =AT4+(AT4*0.09) -> 32741.29119 | AV4: =AU4 -> 32741.29119 | AW4: =AV4+(AV4*0.09) -> 35688.00739 | AX4: 35688.00739 | AZ4: =IF(AX4=AW4,$AX$2,"2020") -> 2019 | BB4: 23792.00493 | BC4: =IF(AX4=BB4,TRUE,FALSE) -> FALSE | BD4: =TRUNC(AX4,2)=TRUNC(BB4,2) -> FALSE | BE4: =ROUNDDOWN(AX4,2)=ROUNDDOWN(BB4,2) -> FALSE
A5: 7500 | B5: 95 | C5: 1/1/1995 | D5: 24 | E5: 12 | F5: 21094.98586 | H5: 7500 | Y5: 7500 | Z5: =Y5 -> 7500 | AA5: =Z5+(Z5*0.09) -> 8175 | AB5: =AA5 -> 8175 | AC5: =AB5+(AB5*0.09) -> 8910.75 | AD5: 8910.75 | AE5: 13366.125 | AF5: 13366.125 | AG5: 14569.07625 | AH5: =AG5 -> 14569.07625 | AI5: =AH5+(AH5*0.09) -> 15880.29311 | AJ5: =AI5 -> 15880.29311 | AK5: =AJ5+(AJ5*0.09) -> 17309.51949 | AL5: =AK5 -> 17309.51949 | AM5: =AL5+(AL5*0.09) -> 18867.37625 | AN5: =AM5 -> 18867.37625 | AO5: =AN5+(AN5*0.09) -> 20565.44011 | AP5: =AO5 -> 20565.44011 | AQ5: =AP5+(AP5*0.09) -> 22416.32972 | AR5: =AQ5 -> 22416.32972 | AS5: =AR5+(AR5*0.09) -> 24433.79939 | AT5: =AS5 -> 24433.79939 | AU5: =AT5+(AT5*0.09) -> 26632.84134 | AV5: =AU5 -> 26632.84134 | AW5: =AV5+(AV5*0.09) -> 29029.79706 | AX5: 29029.79706 | AZ5: 2019 | BB5: 21094.98586 | BC5: FALSE | BD5: FALSE | BE5: FALSE
A6: 7687.5 | B6: 94 | C6: 1/1/1994 | D6: 25 | E6: 12 | F6: 21622.36051 | H6: 7687.5 | X6: 7687.5 | Y6: =X6 -> 7687.5 | Z6: =Y6+(Y6*0.09) -> 8379.375 | AA6: =Z6 -> 8379.375 | AB6: =AA6+(AA6*0.09) -> 9133.51875 | AC6: =AB6 -> 9133.51875 | AD6: 9955.535437 | AE6: 14933.30316 | AF6: 14933.30316 | AG6: 16277.30044 | AH6: =AG6 -> 16277.30044 | AI6: =AH6+(AH6*0.09) -> 17742.25748 | AJ6: =AI6 -> 17742.25748 | AK6: =AJ6+(AJ6*0.09) -> 19339.06065 | AL6: =AK6 -> 19339.06065 | AM6: =AL6+(AL6*0.09) -> 21079.57611 | AN6: =AM6 -> 21079.57611 | AO6: =AN6+(AN6*0.09) -> 22976.73796 | AP6: =AO6 -> 22976.73796 | AQ6: =AP6+(AP6*0.09) -> 25044.64438 | AR6: =AQ6 -> 25044.64438 | AS6: =AR6+(AR6*0.09) -> 27298.66237 | AT6: =AS6 -> 27298.66237 | AU6: =AT6+(AT6*0.09) -> 29755.54199 | AV6: =AU6 -> 29755.54199 | AW6: =AV6+(AV6*0.09) -> 32433.54076 | AX6: 32433.54076 | AZ6: 2019 | BB6: 21622.36051 | BC6: FALSE | BD6: FALSE | BE6: FALSE
A7: 8700 | B7: 94 | C7: 1/1/1994 | D7: 25 | E7: 12 | F7: 24470.1836 | H7: 8700 | X7: 8700 | Y7: =X7 -> 8700 | Z7: =Y7+(Y7*0.09) -> 9483 | AA7: =Z7 -> 9483 | AB7: =AA7+(AA7*0.09) -> 10336.47 | AC7: =AB7 -> 10336.47 | AD7: 11266.7523 | AE7: 16900.12845 | AF7: 16900.12845 | AG7: 18421.14001 | AH7: =AG7 -> 18421.14001 | AI7: =AH7+(AH7*0.09) -> 20079.04261 | AJ7: =AI7 -> 20079.04261 | AK7: =AJ7+(AJ7*0.09) -> 21886.15645 | AL7: =AK7 -> 21886.15645 | AM7: =AL7+(AL7*0.09) -> 23855.91053 | AN7: =AM7 -> 23855.91053 | AO7: =AN7+(AN7*0.09) -> 26002.94247 | AP7: =AO7 -> 26002.94247 | AQ7: =AP7+(AP7*0.09) -> 28343.2073 | AR7: =AQ7 -> 28343.2073 | AS7: =AR7+(AR7*0.09) -> 30894.09595 | AT7: =AS7 -> 30894.09595 | AU7: =AT7+(AT7*0.09) -> 33674.56459 | AV7: =AU7 -> 33674.56459 | AW7: =AV7+(AV7*0.09) -> 36705.2754 | AX7: 36705.2754 | AZ7: 2019 | BB7: 24470.1836 | BC7: FALSE | BD7: FALSE | BE7: FALSE
A8: 8700 | B8: 93 | C8: 1/1/1993 | D8: 26 | E8: 13 | F8: 26672.50013 | H8: 8700 | W8: 8700 | X8: =W8 -> 8700 | Y8: =X8+(X8*0.09) -> 9483 | Z8: =Y8 -> 9483 | AA8: =Z8+(Z8*0.09) -> 10336.47 | AB8: =AA8 -> 10336.47 | AC8: =AB8+(AB8*0.09) -> 11266.7523 | AD8: 11266.7523 | AE8: 16900.12845 | AF8: 16900.12845 | AG8: 18421.14001 | AH8: =AG8 -> 18421.14001 | AI8: =AH8+(AH8*0.09) -> 20079.04261 | AJ8: =AI8 -> 20079.04261 | AK8: =AJ8+(AJ8*0.09) -> 21886.15645 | AL8: =AK8 -> 21886.15645 | AM8: =AL8+(AL8*0.09) -> 23855.91053 | AN8: =AM8 -> 23855.91053 | AO8: =AN8+(AN8*0.09) -> 26002.94247 | AP8: =AO8 -> 26002.94247 | AQ8: =AP8+(AP8*0.09) -> 28343.2073 | AR8: =AQ8 -> 28343.2073 | AS8: =AR8+(AR8*0.09) -> 30894.09595 | AT8: =AS8 -> 30894.09595 | AU8: =AT8+(AT8*0.09) -> 33674.56459 | AV8: =AU8 -> 33674.56459 | AW8: =AV8+(AV8*0.09) -> 36705.2754 | AX8: 36705.2754 | AZ8: 2019 | BB8: 26672.50013 | BC8: FALSE | BD8: FALSE | BE8: FALSE
A9: 12750 | B9: 93 | C9: 1/1/1993 | D9: 26 | E9: 13 | F9: 39089.0088 | H9: 12750 | W9: 12750 | X9: =W9 -> 12750 | Y9: =X9+(X9*0.09) -> 13897.5 | Z9: =Y9 -> 13897.5 | AA9: =Z9+(Z9*0.09) -> 15148.275 | AB9: =AA9 -> 15148.275 | AC9: =AB9+(AB9*0.09) -> 16511.61975 | AD9: 16511.61975 | AE9: 24767.42962 | AF9: 24767.42962 | AG9: 26996.49829 | AH9: =AG9 -> 26996.49829 | AI9: =AH9+(AH9*0.09) -> 29426.18314 | AJ9: =AI9 -> 29426.18314 | AK9: =AJ9+(AJ9*0.09) -> 32074.53962 | AL9: =AK9 -> 32074.53962 | AM9: =AL9+(AL9*0.09) -> 34961.24819 | AN9: =AM9 -> 34961.24819 | AO9: =AN9+(AN9*0.09) -> 38107.76052 | AP9: =AO9 -> 38107.76052 | AQ9: =AP9+(AP9*0.09) -> 41537.45897 | AR9: =AQ9 -> 41537.45897 | AS9: =AR9+(AR9*0.09) -> 45275.83028 | AT9: =AS9 -> 45275.83028 | AU9: =AT9+(AT9*0.09) -> 49350.655 | AV9: =AU9 -> 49350.655 | AW9: =AV9+(AV9*0.09) -> 53792.21395 | AX9: 53792.21395 | AZ9: 2019 | BB9: 39089.0088 | BC9: FALSE | BD9: FALSE | BE9: FALSE
A10: 6075 | B10: 93 | C10: 1/1/1993 | D10: 26 | E10: 13 | F10: 18624.76302 | H10: 6075 | W10: 6075 | X10: =W10 -> 6075 | Y10: =X10+(X10*0.09) -> 6621.75 | Z10: =Y10 -> 6621.75 | AA10: =Z10+(Z10*0.09) -> 7217.7075 | AB10: =AA10 -> 7217.7075 | AC10: =AB10+(AB10*0.09) -> 7867.301175 | AD10: 7867.301175 | AE10: 11800.95176 | AF10: 11800.95176 | AG10: 12863.03742 | AH10: =AG10 -> 12863.03742 | AI10: =AH10+(AH10*0.09) -> 14020.71079 | AJ10: =AI10 -> 14020.71079 | AK10: =AJ10+(AJ10*0.09) -> 15282.57476 | AL10: =AK10 -> 15282.57476 | AM10: =AL10+(AL10*0.09) -> 16658.00649 | AN10: =AM10 -> 16658.00649 | AO10: =AN10+(AN10*0.09) -> 18157.22707 | AP10: =AO10 -> 18157.22707 | AQ10: =AP10+(AP10*0.09) -> 19791.37751 | AR10: =AQ10 -> 19791.37751 | AS10: =AR10+(AR10*0.09) -> 21572.60148 | AT10: =AS10 -> 21572.60148 | AU10: =AT10+(AT10*0.09) -> 23514.13562 | AV10: =AU10 -> 23514.13562 | AW10: =AV10+(AV10*0.09) -> 25630.40782 | AX10: 25630.40782 | AZ10: 2019 | BB10: 18624.76302 | BC10: FALSE | BD10: FALSE | BE10: FALSE
A11: 18125 | B11: 92 | C11: 1/1/1992 | D11: 27 | E11: 13 | F11: 55567.7086 | H11: 18125 | V11: 18125 | W11: =V11 -> 18125 | X11: =W11+(W11*0.09) -> 19756.25 | Y11: =X11 -> 19756.25 | Z11: =Y11+(Y11*0.09) -> 21534.3125 | AA11: =Z11 -> 21534.3125 | AB11: =AA11+(AA11*0.09) -> 23472.40062 | AC11: =AB11 -> 23472.40062 | AD11: 25584.91668 | AE11: 38377.37502 | AF11: 38377.37502 | AG11: 41831.33877 | AH11: =AG11 -> 41831.33877 | AI11: =AH11+(AH11*0.09) -> 45596.15926 | AJ11: =AI11 -> 45596.15926 | AK11: =AJ11+(AJ11*0.09) -> 49699.8136 | AL11: =AK11 -> 49699.8136 | AM11: =AL11+(AL11*0.09) -> 54172.79682 | AN11: =AM11 -> 54172.79682 | AO11: =AN11+(AN11*0.09) -> 59048.34853 | AP11: =AO11 -> 59048.34853 | AQ11: =AP11+(AP11*0.09) -> 64362.6999 | AR11: =AQ11 -> 64362.6999 | AS11: =AR11+(AR11*0.09) -> 70155.34289 | AT11: =AS11 -> 70155.34289 | AU11: =AT11+(AT11*0.09) -> 76469.32375 | AV11: =AU11 -> 76469.32375 | AW11: =AV11+(AV11*0.09) -> 83351.56289 | AX11: 83351.56289 | AZ11: 2019 | BB11: 55567.7086 | BC11: =IF(AX11=BB11,TRUE,FALSE) -> FALSE | BD11: FALSE | BE11: FALSE
A12: 17187.5 | B12: 92 | C12: 1/1/1992 | D12: 27 | E12: 13 | F12: 52693.51677 | H12: 17187.5 | V12: 17187.5 | W12: =V12 -> 17187.5 | X12: =W12+(W12*0.09) -> 18734.375 | Y12: =X12 -> 18734.375 | Z12: =Y12+(Y12*0.09) -> 20420.46875 | AA12: =Z12 -> 20420.46875 | AB12: =AA12+(AA12*0.09) -> 22258.31094 | AC12: =AB12 -> 22258.31094 | AD12: 24261.55892 | AE12: 36392.33838 | AF12: 36392.33838 | AG12: 39667.64884 | AH12: =AG12 -> 39667.64884 | AI12: =AH12+(AH12*0.09) -> 43237.73723 | AJ12: =AI12 -> 43237.73723 | AK12: =AJ12+(AJ12*0.09) -> 47129.13358 | AL12: =AK12 -> 47129.13358 | AM12: =AL12+(AL12*0.09) -> 51370.75561 | AN12: =AM12 -> 51370.75561 | AO12: =AN12+(AN12*0.09) -> 55994.12361 | AP12: =AO12 -> 55994.12361 | AQ12: =AP12+(AP12*0.09) -> 61033.59474 | AR12: =AQ12 -> 61033.59474 | AS12: =AR12+(AR12*0.09) -> 66526.61826 | AT12: =AS12 -> 66526.61826 | AU12: =AT12+(AT12*0.09) -> 72514.01391 | AV12: =AU12 -> 72514.01391 | AW12: =AV12+(AV12*0.09) -> 79040.27516 | AX12: 79040.27516 | AZ12: 2019 | BB12: 52693.51677 | BC12: FALSE | BD12: FALSE | BE12: FALSE
A13: 4050 | B13: 92 | C13: 1/1/1992 | D13: 27 | E13: 13 | F13: 12416.50868 | H13: 4050 | V13: 4050 | W13: =V13 -> 4050 | X13: =W13+(W13*0.09) -> 4414.5 | Y13: =X13 -> 4414.5 | Z13: =Y13+(Y13*0.09) -> 4811.805 | AA13: =Z13 -> 4811.805 | AB13: =AA13+(AA13*0.09) -> 5244.86745 | AC13: =AB13 -> 5244.86745 | AD13: 5716.905521 | AE13: 8575.358281 | AF13: 8575.358281 | AG13: 9347.140526 | AH13: =AG13 -> 9347.140526 | AI13: =AH13+(AH13*0.09) -> 10188.38317 | AJ13: =AI13 -> 10188.38317 | AK13: =AJ13+(AJ13*0.09) -> 11105.33766 | AL13: =AK13 -> 11105.33766 | AM13: =AL13+(AL13*0.09) -> 12104.81805 | AN13: =AM13 -> 12104.81805 | AO13: =AN13+(AN13*0.09) -> 13194.25167 | AP13: =AO13 -> 13194.25167 | AQ13: =AP13+(AP13*0.09) -> 14381.73432 | AR13: =AQ13 -> 14381.73432 | AS13: =AR13+(AR13*0.09) -> 15676.09041 | AT13: =AS13 -> 15676.09041 | AU13: =AT13+(AT13*0.09) -> 17086.93855 | AV13: =AU13 -> 17086.93855 | AW13: =AV13+(AV13*0.09) -> 18624.76302 | AX13: 18624.76302 | AZ13: 2019 | BB13: 12416.50868 | BC13: FALSE | BD13: FALSE | BE13: FALSE
A14: 7687.5 | B14: 91 | C14: 1/1/1991 | D14: 28 | E14: 14 | F14: 25689.52652 | H14: 7687.5 | U14: 7687.5 | V14: =U14 -> 7687.5 | W14: =V14+(V14*0.09) -> 8379.375 | X14: =W14 -> 8379.375 | Y14: =X14+(X14*0.09) -> 9133.51875 | Z14: =Y14 -> 9133.51875 | AA14: =Z14+(Z14*0.09) -> 9955.535437 | AB14: =AA14 -> 9955.535437 | AC14: =AB14+(AB14*0.09) -> 10851.53363 | AD14: 10851.53363 | AE14: 16277.30044 | AF14: 16277.30044 | AG14: 17742.25748 | AH14: =AG14 -> 17742.25748 | AI14: =AH14+(AH14*0.09) -> 19339.06065 | AJ14: =AI14 -> 19339.06065 | AK14: =AJ14+(AJ14*0.09) -> 21079.57611 | AL14: =AK14 -> 21079.57611 | AM14: =AL14+(AL14*0.09) -> 22976.73796 | AN14: =AM14 -> 22976.73796 | AO14: =AN14+(AN14*0.09) -> 25044.64438 | AP14: =AO14 -> 25044.64438 | AQ14: =AP14+(AP14*0.09) -> 27298.66237 | AR14: =AQ14 -> 27298.66237 | AS14: =AR14+(AR14*0.09) -> 29755.54199 | AT14: =AS14 -> 29755.54199 | AU14: =AT14+(AT14*0.09) -> 32433.54076 | AV14: =AU14 -> 32433.54076 | AW14: =AV14+(AV14*0.09) -> 35352.55943 | AX14: 35352.55943 | AZ14: 2019 | BB14: 25689.52652 | BC14: FALSE | BD14: FALSE | BE14: FALSE
A15: 13718.75 | B15: 90 | C15: 1/1/1990 | D15: 29 | E15: 14 | F15: 45844.31765 | H15: 13718.75 | T15: 13718.75 | U15: =T15 -> 13718.75 | V15: =U15+(U15*0.09) -> 14953.4375 | W15: =V15 -> 14953.4375 | X15: =W15+(W15*0.09) -> 16299.24688 | Y15: =X15 -> 16299.24688 | Z15: =Y15+(Y15*0.09) -> 17766.17909 | AA15: =Z15 -> 17766.17909 | AB15: =AA15+(AA15*0.09) -> 19365.13521 | AC15: =AB15 -> 19365.13521 | AD15: 21107.99738 | AE15: 31661.99607 | AF15: 31661.99607 | AG15: 34511.57572 | AH15: =AG15 -> 34511.57572 | AI15: =AH15+(AH15*0.09) -> 37617.61753 | AJ15: =AI15 -> 37617.61753 | AK15: =AJ15+(AJ15*0.09) -> 41003.20311 | AL15: =AK15 -> 41003.20311 | AM15: =AL15+(AL15*0.09) -> 44693.49139 | AN15: =AM15 -> 44693.49139 | AO15: =AN15+(AN15*0.09) -> 48715.90562 | AP15: =AO15 -> 48715.90562 | AQ15: =AP15+(AP15*0.09) -> 53100.33712 | AR15: =AQ15 -> 53100.33712 | AS15: =AR15+(AR15*0.09) -> 57879.36746 | AT15: =AS15 -> 57879.36746 | AU15: =AT15+(AT15*0.09) -> 63088.51053 | AV15: =AU15 -> 63088.51053 | AW15: =AV15+(AV15*0.09) -> 68766.47648 | AX15: 68766.47648 | AZ15: 2019 | BB15: 45844.31765 | BC15: FALSE | BD15: FALSE | BE15: FALSE
A16: 9450 | B16: 90 | C16: 1/1/1990 | D16: 29 | E16: 14 | F16: 31579.32041 | H16: 9450 | T16: 9450 | U16: =T16 -> 9450 | V16: =U16+(U16*0.09) -> 10300.5 | W16: =V16 -> 10300.5 | X16: =W16+(W16*0.09) -> 11227.545 | Y16: =X16 -> 11227.545 | Z16: =Y16+(Y16*0.09) -> 12238.02405 | AA16: =Z16 -> 12238.02405 | AB16: =AA16+(AA16*0.09) -> 13339.44621 | AC16: =AB16 -> 13339.44621 | AD16: 14539.99637 | AE16: 21809.99456 | AF16: 21809.99456 | AG16: 23772.89407 | AH16: =AG16 -> 23772.89407 | AI16: =AH16+(AH16*0.09) -> 25912.45454 | AJ16: =AI16 -> 25912.45454 | AK16: =AJ16+(AJ16*0.09) -> 28244.57545 | AL16: =AK16 -> 28244.57545 | AM16: =AL16+(AL16*0.09) -> 30786.58724 | AN16: =AM16 -> 30786.58724 | AO16: =AN16+(AN16*0.09) -> 33557.38009 | AP16: =AO16 -> 33557.38009 | AQ16: =AP16+(AP16*0.09) -> 36577.5443 | AR16: =AQ16 -> 36577.5443 | AS16: =AR16+(AR16*0.09) -> 39869.52328 | AT16: =AS16 -> 39869.52328 | AU16: =AT16+(AT16*0.09) -> 43457.78038 | AV16: =AU16 -> 43457.78038 | AW16: =AV16+(AV16*0.09) -> 47368.98061 | AX16: 47368.98061 | AZ16: 2019 | BB16: 31579.32041 | BC16: FALSE | BD16: FALSE | BE16: FALSE
A17: 6937.5 | B17: 87 | C17: 1/1/1987 | D17: 32 | E17: 16 | F17: 27543.99705 | H17: 6937.5 | Q17: 6937.5 | R17: =Q17 -> 6937.5 | S17: =R17+(R17*0.09) -> 7561.875 | T17: =S17 -> 7561.875 | U17: =T17+(T17*0.09) -> 8242.44375 | V17: =U17 -> 8242.44375 | W17: =V17+(V17*0.09) -> 8984.263688 | X17: =W17 -> 8984.263688 | Y17: =X17+(X17*0.09) -> 9792.847419 | Z17: =Y17 -> 9792.847419 | AA17: =Z17+(Z17*0.09) -> 10674.20369 | AB17: =AA17 -> 10674.20369 | AC17: =AB17+(AB17*0.09) -> 11634.88202 | AD17: 11634.88202 | AE17: 17452.32303 | AF17: 17452.32303 | AG17: 19023.0321 | AH17: =AG17 -> 19023.0321 | AI17: =AH17+(AH17*0.09) -> 20735.10499 | AJ17: =AI17 -> 20735.10499 | AK17: =AJ17+(AJ17*0.09) -> 22601.26444 | AL17: =AK17 -> 22601.26444 | AM17: =AL17+(AL17*0.09) -> 24635.37824 | AN17: =AM17 -> 24635.37824 | AO17: =AN17+(AN17*0.09) -> 26852.56228 | AP17: =AO17 -> 26852.56228 | AQ17: =AP17+(AP17*0.09) -> 29269.29289 | AR17: =AQ17 -> 29269.29289 | AS17: =AR17+(AR17*0.09) -> 31903.52925 | AT17: =AS17 -> 31903.52925 | AU17: =AT17+(AT17*0.09) -> 34774.84688 | AV17: =AU17 -> 34774.84688 | AW17: =AV17+(AV17*0.09) -> 37904.5831 | AX17: 37904.5831 | AZ17: 2019 | BB17: 27543.99705 | BC17: FALSE | BD17: FALSE | BE17: FALSE
A18: 6262.5 | B18: 87 | C18: 1/1/1987 | D18: 32 | E18: 16 | F18: 24864.04058 | H18: 6262.5 | Q18: 6262.5 | R18: =Q18 -> 6262.5 | S18: =R18+(R18*0.09) -> 6826.125 | T18: =S18 -> 6826.125 | U18: =T18+(T18*0.09) -> 7440.47625 | V18: =U18 -> 7440.47625 | W18: =V18+(V18*0.09) -> 8110.119112 | X18: =W18 -> 8110.119112 | Y18: =X18+(X18*0.09) -> 8840.029833 | Z18: =Y18 -> 8840.029833 | AA18: =Z18+(Z18*0.09) -> 9635.632518 | AB18: =AA18 -> 9635.632518 | AC18: =AB18+(AB18*0.09) -> 10502.83944 | AD18: 10502.83944 | AE18: 15754.25917 | AF18: 15754.25917 | AG18: 17172.14249 | AH18: =AG18 -> 17172.14249 | AI18: =AH18+(AH18*0.09) -> 18717.63532 | AJ18: =AI18 -> 18717.63532 | AK18: =AJ18+(AJ18*0.09) -> 20402.22249 | AL18: =AK18 -> 20402.22249 | AM18: =AL18+(AL18*0.09) -> 22238.42252 | AN18: =AM18 -> 22238.42252 | AO18: =AN18+(AN18*0.09) -> 24239.88054 | AP18: =AO18 -> 24239.88054 | AQ18: =AP18+(AP18*0.09) -> 26421.46979 | AR18: =AQ18 -> 26421.46979 | AS18: =AR18+(AR18*0.09) -> 28799.40208 | AT18: =AS18 -> 28799.40208 | AU18: =AT18+(AT18*0.09) -> 31391.34826 | AV18: =AU18 -> 31391.34826 | AW18: =AV18+(AV18*0.09) -> 34216.56961 | AX18: 34216.56961 | AZ18: 2019 | BB18: 24864.04058 | BC18: FALSE | BD18: FALSE | BE18: FALSE
A19: 16500 | B19: 86 | C19: 1/1/1986 | D19: 33 | E19: 16 | F19: 65510.04704 | H19: 16500 | P19: 16500 | Q19: =P19 -> 16500 | R19: =Q19+(Q19*0.09) -> 17985 | S19: =R19 -> 17985 | T19: =S19+(S19*0.09) -> 19603.65 | U19: =T19 -> 19603.65 | V19: =U19+(U19*0.09) -> 21367.9785 | W19: =V19 -> 21367.9785 | X19: =W19+(W19*0.09) -> 23291.09656 | Y19: =X19 -> 23291.09656 | Z19: =Y19+(Y19*0.09) -> 25387.29526 | AA19: =Z19 -> 25387.29526 | AB19: =AA19+(AA19*0.09) -> 27672.15183 | AC19: =AB19 -> 27672.15183 | AD19: 30162.64549 | AE19: 45243.96824 | AF19: 45243.96824 | AG19: 49315.92538 | AH19: =AG19 -> 49315.92538 | AI19: =AH19+(AH19*0.09) -> 53754.35867 | AJ19: =AI19 -> 53754.35867 | AK19: =AJ19+(AJ19*0.09) -> 58592.25095 | AL19: =AK19 -> 58592.25095 | AM19: =AL19+(AL19*0.09) -> 63865.55353 | AN19: =AM19 -> 63865.55353 | AO19: =AN19+(AN19*0.09) -> 69613.45335 | AP19: =AO19 -> 69613.45335 | AQ19: =AP19+(AP19*0.09) -> 75878.66415 | AR19: =AQ19 -> 75878.66415 | AS19: =AR19+(AR19*0.09) -> 82707.74392 | AT19: =AS19 -> 82707.74392 | AU19: =AT19+(AT19*0.09) -> 90151.44088 | AV19: =AU19 -> 90151.44088 | AW19: =AV19+(AV19*0.09) -> 98265.07056 | AX19: 98265.07056 | AZ19: 2019 | BB19: 65510.04704 | BC19: FALSE | BD19: FALSE | BE19: FALSE
A20: 4312.5 | B20: 82 | C20: 1/1/1982 | D20: 37 | E20: 18 | F20: 20342.5818 | H20: 4312.5 | L20: 4312.5 | M20: =L20 -> 4312.5 | N20: =M20+(M20*0.09) -> 4700.625 | O20: =N20 -> 4700.625 | P20: =O20+(O20*0.09) -> 5123.68125 | Q20: =P20 -> 5123.68125 | R20: =Q20+(Q20*0.09) -> 5584.812562 | S20: =R20 -> 5584.812562 | T20: =S20+(S20*0.09) -> 6087.445693 | U20: =T20 -> 6087.445693 | V20: =U20+(U20*0.09) -> 6635.315806 | W20: =V20 -> 6635.315806 | X20: =W20+(W20*0.09) -> 7232.494228 | Y20: =X20 -> 7232.494228 | Z20: =Y20+(Y20*0.09) -> 7883.418709 | AA20: =Z20 -> 7883.418709 | AB20: =AA20+(AA20*0.09) -> 8592.926392 | AC20: =AB20 -> 8592.926392 | AD20: 9366.289768 | AE20: 14049.43465 | AF20: 14049.43465 | AG20: 15313.88377 | AH20: =AG20 -> 15313.88377 | AI20: =AH20+(AH20*0.09) -> 16692.13331 | AJ20: =AI20 -> 16692.13331 | AK20: =AJ20+(AJ20*0.09) -> 18194.42531 | AL20: =AK20 -> 18194.42531 | AM20: =AL20+(AL20*0.09) -> 19831.92358 | AN20: =AM20 -> 19831.92358 | AO20: =AN20+(AN20*0.09) -> 21616.79671 | AP20: =AO20 -> 21616.79671 | AQ20: =AP20+(AP20*0.09) -> 23562.30841 | AR20: =AQ20 -> 23562.30841 | AS20: =AR20+(AR20*0.09) -> 25682.91617 | AT20: =AS20 -> 25682.91617 | AU20: =AT20+(AT20*0.09) -> 27994.37862 | AV20: =AU20 -> 27994.37862 | AW20: =AV20+(AV20*0.09) -> 30513.8727 | AX20: 30513.8727 | AZ20: 2019 | BB20: 20342.5818 | BC20: FALSE | BD20: FALSE | BE20: FALSE
A21: 5625 | B21: 82 | C21: 1/1/1982 | D21: 37 | E21: 18 | F21: 26533.80235 | H21: 5625 | L21: 5625 | M21: =L21 -> 5625 | N21: =M21+(M21*0.09) -> 6131.25 | O21: =N21 -> 6131.25 | P21: =O21+(O21*0.09) -> 6683.0625 | Q21: =P21 -> 6683.0625 | R21: =Q21+(Q21*0.09) -> 7284.538125 | S21: =R21 -> 7284.538125 | T21: =S21+(S21*0.09) -> 7940.146556 | U21: =T21 -> 7940.146556 | V21: =U21+(U21*0.09) -> 8654.759746 | W21: =V21 -> 8654.759746 | X21: =W21+(W21*0.09) -> 9433.688123 | Y21: =X21 -> 9433.688123 | Z21: =Y21+(Y21*0.09) -> 10282.72005 | AA21: =Z21 -> 10282.72005 | AB21: =AA21+(AA21*0.09) -> 11208.16486 | AC21: =AB21 -> 11208.16486 | AD21: 12216.8997 | AE21: 18325.34955 | AF21: 18325.34955 | AG21: 19974.631 | AH21: =AG21 -> 19974.631 | AI21: =AH21+(AH21*0.09) -> 21772.34779 | AJ21: =AI21 -> 21772.34779 | AK21: =AJ21+(AJ21*0.09) -> 23731.8591 | AL21: =AK21 -> 23731.8591 | AM21: =AL21+(AL21*0.09) -> 25867.72641 | AN21: =AM21 -> 25867.72641 | AO21: =AN21+(AN21*0.09) -> 28195.82179 | AP21: =AO21 -> 28195.82179 | AQ21: =AP21+(AP21*0.09) -> 30733.44575 | AR21: =AQ21 -> 30733.44575 | AS21: =AR21+(AR21*0.09) -> 33499.45587 | AT21: =AS21 -> 33499.45587 | AU21: =AT21+(AT21*0.09) -> 36514.4069 | AV21: =AU21 -> 36514.4069 | AW21: =AV21+(AV21*0.09) -> 39800.70352 | AX21: 39800.70352 | AZ21: 2019 | BB21: 26533.80235 | BC21: FALSE | BD21: FALSE | BE21: FALSE
A22: 10050 | B22: 81 | C22: 1/1/1981 | D22: 38 | E22: 19 | F22: 51673.69561 | H22: 10050 | K22: 10050 | L22: =K22 -> 10050 | M22: =L22+(L22*0.09) -> 10954.5 | N22: =M22 -> 10954.5 | O22: =N22+(N22*0.09) -> 11940.405 | P22: =O22 -> 11940.405 | Q22: =P22+(P22*0.09) -> 13015.04145 | R22: =Q22 -> 13015.04145 | S22: =R22+(R22*0.09) -> 14186.39518 | T22: =S22 -> 14186.39518 | U22: =T22+(T22*0.09) -> 15463.17075 | V22: =U22 -> 15463.17075 | W22: =V22+(V22*0.09) -> 16854.85611 | X22: =W22 -> 16854.85611 | Y22: =X22+(X22*0.09) -> 18371.79316 | Z22: =Y22 -> 18371.79316 | AA22: =Z22+(Z22*0.09) -> 20025.25455 | AB22: =AA22 -> 20025.25455 | AC22: =AB22+(AB22*0.09) -> 21827.52746 | AD22: 21827.52746 | AE22: 32741.29119 | AF22: 32741.29119 | AG22: 35688.00739 | AH22: =AG22 -> 35688.00739 | AI22: =AH22+(AH22*0.09) -> 38899.92806 | AJ22: =AI22 -> 38899.92806 | AK22: =AJ22+(AJ22*0.09) -> 42400.92159 | AL22: =AK22 -> 42400.92159 | AM22: =AL22+(AL22*0.09) -> 46217.00453 | AN22: =AM22 -> 46217.00453 | AO22: =AN22+(AN22*0.09) -> 50376.53494 | AP22: =AO22 -> 50376.53494 | AQ22: =AP22+(AP22*0.09) -> 54910.42308 | AR22: =AQ22 -> 54910.42308 | AS22: =AR22+(AR22*0.09) -> 59852.36116 | AT22: =AS22 -> 59852.36116 | AU22: =AT22+(AT22*0.09) -> 65239.07366 | AV22: =AU22 -> 65239.07366 | AW22: =AV22+(AV22*0.09) -> 71110.59029 | AX22: 71110.59029 | AZ22: 2019 | BB22: 51673.69561 | BC22: FALSE | BD22: FALSE | BE22: FALSE
A23: 100 | E23: 3 | F23: =Yearly_Rate(A23,0.09,E23) -> 129.5029 | H23: 100 | K23: 100 | L23: =K23 -> 100 | M23: =L23+(L23*0.09) -> 109 | N23: =M23 -> 109 | O23: =N23+(N23*0.09) -> 118.81 | P23: =O23 -> 118.81 | Q23: =P23+(P23*0.09) -> 129.5029 | AX23: 129.5029 | BB23: 129.5029 | BC23: TRUE | BD23: TRUE | BE23: TRUE
A25: 10050 | B25: 81 | C25: 1/1/1981 | E25: 10.4 | F25: =ROUNDDOWN(E25,0) -> 10
F26: =A23*(1+0.09)^E23 -> 129.5029

Sheet All (hidden)
M1: =M3/2 -> 12
A2: التسلسل | B2: الاسم | C2: الكنية | D2: الجنس | E2: تاريخ الميلاد | F2: سنوات الدراسة | G2: الوظيفه | H2: مجال الوظيفه | I2: الراتب عند التعيين | J2: سنة التعيين | L2: سنة التعيين | M2: سنوات الخدمة | N2: علاوة الترفيع 9% كل عامين | Q2: الراتب الحالي
A3: 1 | B3: احمد | C3: صباغ | D3: ذكر | E3: 1952-02-03 | F3: 15 | G3: مدير | H3: انتاج | I3: 14250 | J3: 98 | K3: 1998 | L3: 1/1/1995 | M3: =YEAR(TODAY())-(YEAR(L3)) -> 24 | N3: =(0.09*I3) -> 1282.5 | O3: =N3*(0.5*M3) -> 15390 | P3: =I3+(I3*EFFECT(EFFECT(0.09,0.5)*(M1),(M1))) ->  | Q3: =Sal_Comul!AX3 -> 50602.39854
A4: 2 | B4: سامر | C4: المصري | D4: ذكر | E4: 1958-05-23 | F4: 16 | G4: مندوب | H4: تسويق | I4: 10050 | J4: 98 | K4: 1998 | L4: 1/1/1998 | M4: =YEAR(TODAY())-(YEAR(L4)) -> 21 | Q4: =Sal_Comul!AX4 -> 35688.00739
A5: 3 | B5: اية | C5: سليمان | D5: أنثى | E5: 1938-04-28 | F5: 12 | G5: مندوب | H5: تسويق | I5: 7500 | J5: 95 | K5: 1995 | L5: 1/1/1995 | M5: 24 | Q5: =Sal_Comul!AX5 -> 29029.79706
A6: 4 | B6: محمد | C6: علواني | D6: ذكر | E6: 1947-06-07 | F6: 12 | G6: أمين صندوق | H6: مشتريات | I6: 7687.5 | J6: 94 | K6: 1994 | L6: 1/1/1994 | M6: 25 | Q6: =Sal_Comul!AX6 -> 32433.54076
A7: 5 | B7: رعد | C7: المحمد | D7: ذكر | E7: 1958-09-16 | F7: 15 | G7: عامل | H7: انتاج | I7: 8700 | J7: 94 | K7: 1994 | L7: 1/1/1994 | M7: 25 | Q7: =Sal_Comul!AX7 -> 36705.2754
A8: 6 | B8: آمنة | C8: سعدات | D8: أنثى | E8: 1962-01-23 | F8: 16 | G8: كاتب | H8: مشتريات | I8: 8700 | J8: 93 | K8: 1993 | L8: 1/1/1993 | M8: 26 | Q8: =Sal_Comul!AX8 -> 36705.2754
A9: 7 | B9: سمية | C9: محمد | D9: أنثى | E9: 1961-05-25 | F9: 16 | G9: مندوب | H9: تسويق | I9: 12750 | J9: 93 | K9: 1993 | L9: 1/1/1993 | M9: 26 | Q9: =Sal_Comul!AX9 -> 53792.21395
A10: 8 | B10: فاطمة | C10: الكحيل | D10: أنثى | E10: 1968-03-12 | F10: 12 | G10: عامل | H10: انتاج | I10: 6075 | J10: 93 | K10: 1993 | L10: 1/1/1993 | M10: 26 | Q10: =Sal_Comul!AX10 -> 25630.40782
A11: 9 | B11: جمال | C11: عثمان | D11: ذكر | E11: 1962-02-10 | F11: 19 | G11: مدير | H11: مشتريات | I11: 18125 | J11: 92 | K11: 1992 | L11: 1/1/1992 | M11: 27 | Q11: =Sal_Comul!AX11 -> 83351.56289
A12: 10 | B12: سامر | C12: علواني | D12: ذكر | E12: 1961-06-24 | F12: 19 | G12: مدير | H12: تسويق | I12: 17187.5 | J12: 92 | K12: 1992 | L12: 1/1/1992 | M12: 27 | Q12: =Sal_Comul!AX12 -> 79040.27516
A13: 11 | B13: عائشة | C13: الطويل | D13: أنثى | E13: 1938-02-27 | F13: 8 | G13: عامل | H13: انتاج | I13: 4050 | J13: 92 | K13: 1992 | L13: 1/1/1992 | M13: 27 | Q13: =Sal_Comul!AX13 -> 18624.76302
A14: 12 | B14: ماجد | C14: درغام | D14: ذكر | E14: 1948-06-21 | F14: 12 | G14: أمين صندوق | H14: تسويق | I14: 7687.5 | J14: 91 | K14: 1991 | L14: 1/1/1991 | M14: 28 | Q14: =Sal_Comul!AX14 -> 35352.55943
A15: 13 | B15: ثائر | C15: المحمد | D15: ذكر | E15: 1959-10-06 | F15: 16 | G15: مدير | H15: تسويق | I15: 13718.75 | J15: 90 | K15: 1990 | L15: 1/1/1990 | M15: 29 | Q15: =Sal_Comul!AX15 -> 68766.47648
A16: 14 | B16: سامي | C16: الفارابي | D16: ذكر | E16: 1961-08-25 | F16: 14 | G16: عامل | H16: انتاج | I16: 9450 | J16: 90 | K16: 1990 | L16: 1/1/1990 | M16: 29 | Q16: =Sal_Comul!AX16 -> 47368.98061
A17: 15 | B17: سميرة | C17: المحجوب | D17: أنثى | E17: 1964-09-20 | F17: 12 | G17: مندوب | H17: تسويق | I17: 6937.5 | J17: 87 | K17: 1987 | L17: 1/1/1987 | M17: 32 | Q17: =Sal_Comul!AX17 -> 37904.5831
A18: 16 | B18: فاطمة | C18: خالد | D18: أنثى | E18: 1951-01-13 | F18: 16 | G18: مندوب | H18: تسويق | I18: 6262.5 | J18: 87 | K18: 1987 | L18: 1/1/1987 | M18: 32 | Q18: =Sal_Comul!AX18 -> 34216.56961
A19: 17 | B19: دانة | C19: سليمان | D19: أنثى | E19: 1968-08-18 | F19: 16 | G19: مدير | H19: تسويق | I19: 16500 | J19: 86 | K19: 1986 | L19: 1/1/1986 | M19: 33 | Q19: =Sal_Comul!AX19 -> 98265.07056
A20: 18 | B20: باسمة | C20: قدري | D20: أنثى | E20: 1940-08-21 | F20: 12 | G20: كاتب | H20: مشتريات | I20: 4312.5 | J20: 82 | K20: 1982 | L20: 1/1/1982 | M20: 37 | Q20: =Sal_Comul!AX20 -> 30513.8727
A21: 19 | B21: اسماعيل | C21: امجد | D21: ذكر | E21: 1934-02-04 | F21: 15 | G21: مندوب | H21: تسويق | I21: 5625 | J21: 82 | K21: 1982 | L21: 1/1/1982 | M21: 37 | Q21: =Sal_Comul!AX21 -> 39800.70352
A22: 20 | B22: محمد | C22: عوض | D22: ذكر | E22: 1965-01-09 | F22: 16 | G22: مدير | H22: انتاج | I22: 10050 | J22: 81 | K22: 1981 | L22: 1/1/1981 | M22: 38 | Q22: =Sal_Comul!AX22 -> 71110.59029
A24: 20 | B24: محمد | C24: عوض | D24: ذكر | E24: 23751 | F24: 16 | G24: مدير | H24: انتاج | I24: 10050 | J24: 81 | K24: 1981 | L24: 1/1/1981 | M24: =IF(AND($B24<>"",$C24<>""),DATEDIF($C24,TODAY(),"y"),"") -> 

Sheet Sheet16 (hidden)
A3: Row Labels | B3: Sum of الراتب الحالي
A4: احمد صباغ | B4: 50602.39854
A5: ذكر | B5: 50602.39854
A6: اسماعيل امجد | B6: 39800.70352
A7: ذكر | B7: 39800.70352
A8: آمنة سعدات | B8: 36705.2754
A9: أنثى | B9: 36705.2754
A10: اية سليمان | B10: 29029.79706
A11: أنثى | B11: 29029.79706
A12: باسمة قدري | B12: 30513.8727
A13: أنثى | B13: 30513.8727
A14: ثائر المحمد | B14: 68766.47648
A15: ذكر | B15: 68766.47648
A16: جمال عثمان | B16: 83351.56289
A17: ذكر | B17: 83351.56289
A18: خديجة خالد | B18: 34216.56961
A19: أنثى | B19: 34216.56961
A20: دانة سليمان | B20: 98265.07056
A21: أنثى | B21: 98265.07056
A22: رعد المحمد | B22: 36705.2754
A23: ذكر | B23: 36705.2754
A24: سامر المصري | B24: 35688.00739
A25: ذكر | B25: 35688.00739
A26: سامر علواني | B26: 79040.27516
A27: ذكر | B27: 79040.27516
A28: سامي الفارابي | B28: 47368.98061
A29: ذكر | B29: 47368.98061
A30: سمية محمد | B30: 53792.21395
A31: أنثى | B31: 53792.21395
A32: سميرة المحجوب | B32: 37904.5831
A33: أنثى | B33: 37904.5831
A34: عائشة الطويل | B34: 18624.76302
A35: أنثى | B35: 18624.76302
A36: فاطمة الكحيل | B36: 25630.40782
A37: أنثى | B37: 25630.40782
A38: ماجد درغام | B38: 35352.55943
A39: ذكر | B39: 35352.55943
A40: محمد علواني | B40: 32433.54076
A41: ذكر | B41: 32433.54076
A42: محمد عوض | B42: 71110.59029
A43: ذكر | B43: 71110.59029
A44: Grand Total | B44: 944902.9237

Sheet Q6 (hidden)
M1: =M3/2 -> 12
A2: التسلسل | B2: الاسم | C2: الكنية | D2: الجنس | E2: تاريخ الميلاد | F2: سنوات الدراسة | G2: الوظيفه | H2: مجال الوظيفه | I2: الراتب عند التعيين | J2: سنة التعيين | L2: سنة التعيين | M2: سنوات الخدمة | N2: علاوة الترفيع 9% كل عامين | Q2: الراتب الحالي | S2: الاسم | T2: الاسم | U2: الجنس | V2: الراتب الحالي
A3: 3 | B3: اية | C3: سليمان | D3: أنثى | E3: 1938-04-28 | F3: 12 | G3: مندوب | H3: تسويق | I3: 7500 | J3: 95 | K3: 1995 | L3: 1/1/1995 | M3: =YEAR(TODAY())-(YEAR(L3)) -> 24 | Q3: =Sal_Comul!AX5 -> 29029.79706 | S3: اية سليمان | T3: =B3&" "&C3 -> اية سليمان | U3: أنثى | V3: 29029.79706
A4: 6 | B4: آمنة | C4: سعدات | D4: أنثى | E4: 1962-01-23 | F4: 16 | G4: كاتب | H4: مشتريات | I4: 8700 | J4: 93 | K4: 1993 | L4: 1/1/1993 | M4: 26 | Q4: =Sal_Comul!AX8 -> 36705.2754 | S4: آمنة سعدات | T4: =B4&" "&C4 -> آمنة سعدات | U4: أنثى | V4: 36705.2754
A5: 7 | B5: سمية | C5: محمد | D5: أنثى | E5: 1961-05-25 | F5: 16 | G5: مندوب | H5: تسويق | I5: 12750 | J5: 93 | K5: 1993 | L5: 1/1/1993 | M5: 26 | Q5: =Sal_Comul!AX9 -> 53792.21395 | S5: سمية محمد | T5: سمية محمد | U5: أنثى | V5: 53792.21395
A6: 8 | B6: فاطمة | C6: الكحيل | D6: أنثى | E6: 1968-03-12 | F6: 12 | G6: عامل | H6: انتاج | I6: 6075 | J6: 93 | K6: 1993 | L6: 1/1/1993 | M6: 26 | Q6: =Sal_Comul!AX10 -> 25630.40782 | S6: فاطمة الكحيل | T6: فاطمة الكحيل | U6: أنثى | V6: 25630.40782
A7: 11 | B7: عائشة | C7: الطويل | D7: أنثى | E7: 1938-02-27 | F7: 8 | G7: عامل | H7: انتاج | I7: 4050 | J7: 92 | K7: 1992 | L7: 1/1/1992 | M7: 27 | Q7: =Sal_Comul!AX13 -> 18624.76302 | S7: عائشة الطويل | T7: عائشة الطويل | U7: أنثى | V7: 18624.76302
A8: 15 | B8: سميرة | C8: المحجوب | D8: أنثى | E8: 1964-09-20 | F8: 12 | G8: مندوب | H8: تسويق | I8: 6937.5 | J8: 87 | K8: 1987 | L8: 1/1/1987 | M8: 32 | Q8: =Sal_Comul!AX17 -> 37904.5831 | S8: سميرة المحجوب | T8: سميرة المحجوب | U8: أنثى | V8: 37904.5831
A9: 16 | B9: خديجة | C9: خالد | D9: أنثى | E9: 1951-01-13 | F9: 16 | G9: مندوب | H9: تسويق | I9: 6262.5 | J9: 87 | K9: 1987 | L9: 1/1/1987 | M9: 32 | Q9: =Sal_Comul!AX18 -> 34216.56961 | S9: خديجة خالد | T9: خديجة خالد | U9: أنثى | V9: 34216.56961
A10: 17 | B10: دانة | C10: سليمان | D10: أنثى | E10: 1968-08-18 | F10: 16 | G10: مدير | H10: تسويق | I10: 16500 | J10: 86 | K10: 1986 | L10: 1/1/1986 | M10: 33 | Q10: =Sal_Comul!AX19 -> 98265.07056 | S10: دانة سليمان | T10: دانة سليمان | U10: أنثى | V10: 98265.07056
A11: 18 | B11: باسمة | C11: قدري | D11: أنثى | E11: 1940-08-21 | F11: 12 | G11: كاتب | H11: مشتريات | I11: 4312.5 | J11: 82 | K11: 1982 | L11: 1/1/1982 | M11: 37 | Q11: =Sal_Comul!AX20 -> 30513.8727 | S11: باسمة قدري | T11: باسمة قدري | U11: أنثى | V11: 30513.8727
A12: 1 | B12: احمد | C12: صباغ | D12: ذكر | E12: 1952-02-03 | F12: 15 | G12: مدير | H12: انتاج | I12: 14250 | J12: 98 | K12: 1998 | L12: 1/1/1995 | M12: 24 | N12: =(0.09*I12) -> 1282.5 | O12: =N12*(0.5*M12) -> 15390 | P12: =I12+(I12*EFFECT(EFFECT(0.09,0.5)*(M10),(M10))) ->  | Q12: =Sal_Comul!AX3 -> 50602.39854 | S12: احمد صباغ | T12: احمد صباغ | U12: ذكر | V12: 50602.39854
A13: 2 | B13: سامر | C13: المصري | D13: ذكر | E13: 1958-05-23 | F13: 16 | G13: مندوب | H13: تسويق | I13: 10050 | J13: 98 | K13: 1998 | L13: 1/1/1998 | M13: 21 | Q13: =Sal_Comul!AX4 -> 35688.00739 | S13: سامر المصري | T13: سامر المصري | U13: ذكر | V13: 35688.00739
A14: 4 | B14: محمد | C14: علواني | D14: ذكر | E14: 1947-06-07 | F14: 12 | G14: أمين صندوق | H14: مشتريات | I14: 7687.5 | J14: 94 | K14: 1994 | L14: 1/1/1994 | M14: 25 | Q14: =Sal_Comul!AX6 -> 32433.54076 | S14: محمد علواني | T14: محمد علواني | U14: ذكر | V14: 32433.54076
A15: 5 | B15: رعد | C15: المحمد | D15: ذكر | E15: 1958-09-16 | F15: 15 | G15: عامل | H15: انتاج | I15: 8700 | J15: 94 | K15: 1994 | L15: 1/1/1994 | M15: 25 | Q15: =Sal_Comul!AX7 -> 36705.2754 | S15: رعد المحمد | T15: رعد المحمد | U15: ذكر | V15: 36705.2754
A16: 9 | B16: جمال | C16: عثمان | D16: ذكر | E16: 1962-02-10 | F16: 19 | G16: مدير | H16: مشتريات | I16: 18125 | J16: 92 | K16: 1992 | L16: 1/1/1992 | M16: 27 | Q16: =Sal_Comul!AX11 -> 83351.56289 | S16: جمال عثمان | T16: جمال عثمان | U16: ذكر | V16: 83351.56289
A17: 10 | B17: سامر | C17: علواني | D17: ذكر | E17: 1961-06-24 | F17: 19 | G17: مدير | H17: تسويق | I17: 17187.5 | J17: 92 | K17: 1992 | L17: 1/1/1992 | M17: 27 | Q17: =Sal_Comul!AX12 -> 79040.27516 | S17: سامر علواني | T17: سامر علواني | U17: ذكر | V17: 79040.27516
A18: 12 | B18: ماجد | C18: درغام | D18: ذكر | E18: 1948-06-21 | F18: 12 | G18: أمين صندوق | H18: تسويق | I18: 7687.5 | J18: 91 | K18: 1991 | L18: 1/1/1991 | M18: 28 | Q18: =Sal_Comul!AX14 -> 35352.55943 | S18: ماجد درغام | T18: ماجد درغام | U18: ذكر | V18: 35352.55943
A19: 13 | B19: ثائر | C19: المحمد | D19: ذكر | E19: 1959-10-06 | F19: 16 | G19: مدير | H19: تسويق | I19: 13718.75 | J19: 90 | K19: 1990 | L19: 1/1/1990 | M19: 29 | Q19: =Sal_Comul!AX15 -> 68766.47648 | S19: ثائر المحمد | T19: ثائر المحمد | U19: ذكر | V19: 68766.47648
A20: 14 | B20: سامي | C20: الفارابي | D20: ذكر | E20: 1961-08-25 | F20: 14 | G20: عامل | H20: انتاج | I20: 9450 | J20: 90 | K20: 1990 | L20: 1/1/1990 | M20: 29 | Q20: =Sal_Comul!AX16 -> 47368.98061 | S20: سامي الفارابي | T20: سامي الفارابي | U20: ذكر | V20: 47368.98061
A21: 19 | B21: اسماعيل | C21: امجد | D21: ذكر | E21: 1934-02-04 | F21: 15 | G21: مندوب | H21: تسويق | I21: 5625 | J21: 82 | K21: 1982 | L21: 1/1/1982 | M21: 37 | Q21: =Sal_Comul!AX21 -> 39800.70352 | S21: اسماعيل امجد | T21: اسماعيل امجد | U21: ذكر | V21: 39800.70352
A22: 20 | B22: محمد | C22: عوض | D22: ذكر | E22: 1965-01-09 | F22: 16 | G22: مدير | H22: انتاج | I22: 10050 | J22: 81 | K22: 1981 | L22: 1/1/1981 | M22: 38 | Q22: =Sal_Comul!AX22 -> 71110.59029 | S22: محمد عوض | T22: محمد عوض | U22: ذكر | V22: 71110.59029
A24: 20 | B24: محمد | C24: عوض | D24: ذكر | E24: 23751 | F24: 16 | G24: مدير | H24: انتاج | I24: 10050 | J24: 81 | K24: 1981 | L24: 1/1/1981 | M24: =IF(AND($B24<>"",$C24<>""),DATEDIF($C24,TODAY(),"y"),"") -> 

Sheet Q1 (hidden)
K1: =K3/2 -> 10.5
A2: التسلسل | B2: الاسم | C2: الكنية | D2: الجنس | E2: تاريخ الميلاد | F2: سنوات الدراسة | G2: الوظيفه | H2: مجال الوظيفه | I2: الراتب عند التعيين | J2: سنة التعيين | K2: سنوات الخدمة | N2: علاوة الترفيع 9% كل عامين
A3: 1 | B3: احمد | C3: صباغ | D3: ذكر | E3: 1952-02-03 | F3: 15 | G3: مدير | H3: انتاج | I3: 14250 | J3: 1/1/1998 | K3: =YEAR(TODAY())-(YEAR(J3)) -> 21 | L3: =K3/2 -> 10.5 | M3: =ROUNDDOWN(L3,0) -> 10 | N3: =Yearly_Rate(I3,0.09,M3) -> 33734.93236 | O3: =N3*(0.5*K3) -> 354216.7898 | P3: =I3+(I3*EFFECT(EFFECT(0.09,0.5)*(K1),(K1))) -> 
A4: 2 | B4: سامر | C4: المصري | D4: ذكر | E4: 1958-05-23 | F4: 16 | G4: مندوب | H4: تسويق | I4: 10050 | J4: 1/1/1998 | K4: =YEAR(TODAY())-(YEAR(J4)) -> 21 | L4: =K4/2 -> 10.5 | M4: =ROUNDDOWN(L4,0) -> 10 | N4: =Yearly_Rate(I4,0.09,M4) -> 23792.00493
A5: 3 | B5: اية | C5: سليمان | D5: أنثى | E5: 1938-04-28 | F5: 12 | G5: مندوب | H5: تسويق | I5: 7500 | J5: 1/1/1995 | K5: 24 | L5: 12 | M5: 12 | N5: 21094.98586
A6: 4 | B6: محمد | C6: علواني | D6: ذكر | E6: 1947-06-07 | F6: 12 | G6: أمين صندوق | H6: مشتريات | I6: 7687.5 | J6: 1/1/1994 | K6: 25 | L6: 12.5 | M6: 12 | N6: 21622.36051
A7: 5 | B7: رعد | C7: المحمد | D7: ذكر | E7: 1958-09-16 | F7: 15 | G7: عامل | H7: انتاج | I7: 8700 | J7: 1/1/1994 | K7: 25 | L7: 12.5 | M7: 12 | N7: 24470.1836
A8: 6 | B8: آمنة | C8: سعدات | D8: أنثى | E8: 1962-01-23 | F8: 16 | G8: كاتب | H8: مشتريات | I8: 8700 | J8: 1/1/1993 | K8: 26 | L8: 13 | M8: 13 | N8: 26672.50013
A9: 7 | B9: سمية | C9: محمد | D9: أنثى | E9: 1961-05-25 | F9: 16 | G9: مندوب | H9: تسويق | I9: 12750 | J9: 1/1/1993 | K9: 26 | L9: 13 | M9: 13 | N9: 39089.0088
A10: 8 | B10: فاطمة | C10: الكحيل | D10: أنثى | E10: 1968-03-12 | F10: 12 | G10: عامل | H10: انتاج | I10: 6075 | J10: 1/1/1993 | K10: 26 | L10: 13 | M10: 13 | N10: 18624.76302
A11: 9 | B11: جمال | C11: عثمان | D11: ذكر | E11: 1962-02-10 | F11: 19 | G11: مدير | H11: مشتريات | I11: 18125 | J11: 1/1/1992 | K11: 27 | L11: 13.5 | M11: 13 | N11: 55567.7086
A12: 10 | B12: سامر | C12: علواني | D12: ذكر | E12: 1961-06-24 | F12: 19 | G12: مدير | H12: تسويق | I12: 17187.5 | J12: 1/1/1992 | K12: 27 | L12: 13.5 | M12: 13 | N12: 52693.51677
A13: 11 | B13: عائشة | C13: الطويل | D13: أنثى | E13: 1938-02-27 | F13: 8 | G13: عامل | H13: انتاج | I13: 4050 | J13: 1/1/1992 | K13: 27 | L13: 13.5 | M13: 13 | N13: 12416.50868
A14: 12 | B14: ماجد | C14: درغام | D14: ذكر | E14: 1948-06-21 | F14: 12 | G14: أمين صندوق | H14: تسويق | I14: 7687.5 | J14: 1/1/1991 | K14: 28 | L14: 14 | M14: 14 | N14: 25689.52652
A15: 13 | B15: ثائر | C15: المحمد | D15: ذكر | E15: 1959-10-06 | F15: 16 | G15: مدير | H15: تسويق | I15: 13718.75 | J15: 1/1/1990 | K15: 29 | L15: 14.5 | M15: 14 | N15: 45844.31765
A16: 14 | B16: سامي | C16: الفارابي | D16: ذكر | E16: 1961-08-25 | F16: 14 | G16: عامل | H16: انتاج | I16: 9450 | J16: 1/1/1990 | K16: 29 | L16: 14.5 | M16: 14 | N16: 31579.32041
A17: 15 | B17: سميرة | C17: المحجوب | D17: أنثى | E17: 1964-09-20 | F17: 12 | G17: مندوب | H17: تسويق | I17: 6937.5 | J17: 1/1/1987 | K17: 32 | L17: 16 | M17: 16 | N17: 27543.99705
A18: 16 | B18: فاطمة | C18: خالد | D18: أنثى | E18: 1951-01-13 | F18: 16 | G18: مندوب | H18: تسويق | I18: 6262.5 | J18: 1/1/1987 | K18: 32 | L18: 16 | M18: 16 | N18: 24864.04058
A19: 17 | B19: دانة | C19: سليمان | D19: أنثى | E19: 1968-08-18 | F19: 16 | G19: مدير | H19: تسويق | I19: 16500 | J19: 1/1/1986 | K19: 33 | L19: 16.5 | M19: 16 | N19: 65510.04704
A20: 18 | B20: باسمة | C20: قدري | D20: أنثى | E20: 1940-08-21 | F20: 12 | G20: كاتب | H20: مشتريات | I20: 4312.5 | J20: 1/1/1982 | K20: 37 | L20: 18.5 | M20: 18 | N20: 20342.5818
A21: 19 | B21: اسماعيل | C21: امجد | D21: ذكر | E21: 1934-02-04 | F21: 15 | G21: مندوب | H21: تسويق | I21: 5625 | J21: 1/1/1982 | K21: 37 | L21: 18.5 | M21: 18 | N21: 26533.80235
A22: 20 | B22: محمد | C22: عوض | D22: ذكر | E22: 1965-01-09 | F22: 16 | G22: مدير | H22: انتاج | I22: 10050 | J22: 1/1/1981 | K22: 38 | L22: 19 | M22: 19 | N22: 51673.69561
A24: 20 | B24: محمد | C24: عوض | D24: ذكر | E24: 23751 | F24: 16 | G24: مدير | H24: انتاج | I24: 10050 | J24: 81 | K24: =IF(AND($B24<>"",$C24<>""),DATEDIF($C24,TODAY(),"y"),"") -> 

Sheet AgeYR (hidden)
A1: التسلسل | B1: الاسم | C1: الكنية | D1: الجنس | E1: تاريخ الميلاد | G1: Age By Years | I1: Exact Age (Y-M-D)
A2: 1 | B2: احمد | C2: صباغ | D2: ذكر | E2: 1952-02-03 | F2: =NOW() -> 2019-06-24T12:35:48.580 | G2: =INT((F2-E2)/365) -> 67 | H2: =DATEDIF(E2,NOW(),"y") -> 67 | I2: =DATEDIF(E2,TODAY(),"Y") & " Years, " & DATEDIF(E2,TODAY(),"YM") & " Months, " & DATEDIF(E2,TODAY(),"MD") & " Days" -> 67 Years, 4 Months, 21 Days
A3: 2 | B3: سامر | C3: المصري | D3: ذكر | E3: 1958-05-23 | F3: =NOW() -> 2019-06-24T12:35:48.580 | G3: =INT((F3-E3)/365) -> 61 | H3: =DATEDIF(E3,NOW(),"y") -> 61 | I3: =DATEDIF(E3,TODAY(),"Y") & " Years, " & DATEDIF(E3,TODAY(),"YM") & " Months, " & DATEDIF(E3,TODAY(),"MD") & " Days" -> 61 Years, 1 Months, 1 Days
A4: 3 | B4: اية | C4: سليمان | D4: أنثى | E4: 1938-04-28 | F4: 2019-06-24T12:35:48.580 | G4: 81 | H4: 81 | I4: 81 Years, 1 Months, 27 Days
A5: 4 | B5: محمد | C5: علواني | D5: ذكر | E5: 1947-06-07 | F5: 2019-06-24T12:35:48.580 | G5: 72 | H5: 72 | I5: 72 Years, 0 Months, 17 Days
A6: 5 | B6: رعد | C6: المحمد | D6: ذكر | E6: 1958-09-16 | F6: 2019-06-24T12:35:48.580 | G6: 60 | H6: 60 | I6: 60 Years, 9 Months, 8 Days
A7: 6 | B7: آمنة | C7: سعدات | D7: أنثى | E7: 1962-01-23 | F7: 2019-06-24T12:35:48.580 | G7: 57 | H7: 57 | I7: 57 Years, 5 Months, 1 Days
A8: 7 | B8: سمية | C8: محمد | D8: أنثى | E8: 1961-05-25 | F8: 2019-06-24T12:35:48.580 | G8: 58 | H8: 58 | I8: 58 Years, 0 Months, 30 Days
A9: 8 | B9: فاطمة | C9: الكحيل | D9: أنثى | E9: 1968-03-12 | F9: 2019-06-24T12:35:48.580 | G9: 51 | H9: 51 | I9: 51 Years, 3 Months, 12 Days
A10: 9 | B10: جمال | C10: عثمان | D10: ذكر | E10: 1962-02-10 | F10: 2019-06-24T12:35:48.580 | G10: 57 | H10: 57 | I10: 57 Years, 4 Months, 14 Days
A11: 10 | B11: سامر | C11: علواني | D11: ذكر | E11: 1961-06-24 | F11: 2019-06-24T12:35:48.580 | G11: 58 | H11: 58 | I11: 58 Years, 0 Months, 0 Days
A12: 11 | B12: عائشة | C12: الطويل | D12: أنثى | E12: 1938-02-27 | F12: 2019-06-24T12:35:48.580 | G12: 81 | H12: 81 | I12: 81 Years, 3 Months, 28 Days
A13: 12 | B13: ماجد | C13: درغام | D13: ذكر | E13: 1948-06-21 | F13: 2019-06-24T12:35:48.580 | G13: 71 | H13: 71 | I13: 71 Years, 0 Months, 3 Days
A14: 13 | B14: ثائر | C14: المحمد | D14: ذكر | E14: 1959-10-06 | F14: 2019-06-24T12:35:48.580 | G14: 59 | H14: 59 | I14: 59 Years, 8 Months, 18 Days
A15: 14 | B15: سامي | C15: الفارابي | D15: ذكر | E15: 1961-08-25 | F15: 2019-06-24T12:35:48.580 | G15: 57 | H15: 57 | I15: 57 Years, 9 Months, 30 Days
A16: 15 | B16: سميرة | C16: المحجوب | D16: أنثى | E16: 1964-09-20 | F16: 2019-06-24T12:35:48.580 | G16: 54 | H16: 54 | I16: 54 Years, 9 Months, 4 Days
A17: 16 | B17: فاطمة | C17: خالد | D17: أنثى | E17: 1951-01-13 | F17: 2019-06-24T12:35:48.580 | G17: 68 | H17: 68 | I17: 68 Years, 5 Months, 11 Days
A18: 17 | B18: دانة | C18: سليمان | D18: أنثى | E18: 1968-08-18 | F18: 2019-06-24T12:35:48.580 | G18: 50 | H18: 50 | I18: 50 Years, 10 Months, 6 Days
A19: 18 | B19: باسمة | C19: قدري | D19: أنثى | E19: 1940-08-21 | F19: 2019-06-24T12:35:48.580 | G19: 78 | H19: 78 | I19: 78 Years, 10 Months, 3 Days
A20: 19 | B20: اسماعيل | C20: امجد | D20: ذكر | E20: 1934-02-04 | F20: 2019-06-24T12:35:48.580 | G20: 85 | H20: 85 | I20: 85 Years, 4 Months, 20 Days
A21: 20 | B21: محمد | C21: عوض | D21: ذكر | E21: 1965-01-09 | F21: 2019-06-24T12:35:48.580 | G21: 54 | H21: 54 | I21: 54 Years, 5 Months, 15 Days

Sheet MandF (hidden)
A1: التسلسل | B1: الاسم | C1: الكنية | D1: الجنس
A2: 1 | B2: احمد | C2: صباغ | D2: ذكر
A3: 2 | B3: سامر | C3: المصري | D3: ذكر
A4: 3 | B4: اية | C4: سليمان | D4: أنثى | F4: عدد الذكور | G4: =COUNTIF($D$2:$D$21,"ذكر") -> 11 | I4: =COUNTIF($D$2:$D$21,"ذكر") -> 11
A5: 4 | B5: محمد | C5: علواني | D5: ذكر | F5: عدد الاناث | G5: =COUNTIF($D$2:$D$21,"أنثى") -> 9
A6: 5 | B6: رعد | C6: المحمد | D6: ذكر
A7: 6 | B7: آمنة | C7: سعدات | D7: أنثى | F7: العدد الكلي | G7: =SUM(G4:G5) -> 20 | H7: =G7=A21 -> TRUE
A8: 7 | B8: سمية | C8: محمد | D8: أنثى
A9: 8 | B9: فاطمة | C9: الكحيل | D9: أنثى
A10: 9 | B10: جمال | C10: عثمان | D10: ذكر
A11: 10 | B11: سامر | C11: علواني | D11: ذكر
A12: 11 | B12: عائشة | C12: الطويل | D12: أنثى
A13: 12 | B13: ماجد | C13: درغام | D13: ذكر
A14: 13 | B14: ثائر | C14: المحمد | D14: ذكر
A15: 14 | B15: سامي | C15: الفارابي | D15: ذكر
A16: 15 | B16: سميرة | C16: المحجوب | D16: أنثى
A17: 16 | B17: فاطمة | C17: خالد | D17: أنثى
A18: 17 | B18: دانة | C18: سليمان | D18: أنثى
A19: 18 | B19: باسمة | C19: قدري | D19: أنثى
A20: 19 | B20: اسماعيل | C20: امجد | D20: ذكر
A21: 20 | B21: محمد | C21: عوض | D21: ذكر

Sheet Sum_SAL_M (hidden)
A2: التسلسل | B2: الاسم | C2: الكنية | D2: الجنس | E2: تاريخ الميلاد | F2: سنوات الدراسة | G2: الوظيفه | H2: مجال الوظيفه | I2: الراتب عند التعيين | J2: سنة التعيين
A3: 1 | B3: احمد | C3: صباغ | D3: ذكر | E3: 1952-02-03 | F3: 15 | G3: مدير | H3: انتاج | I3: 14250 | J3: 1/1/1995
A4: 2 | B4: سامر | C4: المصري | D4: ذكر | E4: 1958-05-23 | F4: 16 | G4: مندوب | H4: تسويق | I4: 10050 | J4: 1/1/1998
A5: 3 | B5: اية | C5: سليمان | D5: أنثى | E5: 1938-04-28 | F5: 12 | G5: مندوب | H5: تسويق | I5: 7500 | J5: 1/1/1995
A6: 4 | B6: محمد | C6: علواني | D6: ذكر | E6: 1947-06-07 | F6: 12 | G6: أمين صندوق | H6: مشتريات | I6: 7687.5 | J6: 1/1/1994 | N6: مجموع الراتب الذكور عند اول تعيين
A7: 5 | B7: رعد | C7: المحمد | D7: ذكر | E7: 1958-09-16 | F7: 15 | G7: عامل | H7: انتاج | I7: 8700 | J7: 1/1/1994 | N7: =SUMIF(D3:D22,"ذكر",I3:I22) -> 122531.25
A8: 6 | B8: آمنة | C8: سعدات | D8: أنثى | E8: 1962-01-23 | F8: 16 | G8: كاتب | H8: مشتريات | I8: 8700 | J8: 1/1/1993
A9: 7 | B9: سمية | C9: محمد | D9: أنثى | E9: 1961-05-25 | F9: 16 | G9: مندوب | H9: تسويق | I9: 12750 | J9: 1/1/1993
A10: 8 | B10: فاطمة | C10: الكحيل | D10: أنثى | E10: 1968-03-12 | F10: 12 | G10: عامل | H10: انتاج | I10: 6075 | J10: 1/1/1993 | N10: مجموع الراتب الإناث عند اول تعيين
A11: 9 | B11: جمال | C11: عثمان | D11: ذكر | E11: 1962-02-10 | F11: 19 | G11: مدير | H11: مشتريات | I11: 18125 | J11: 1/1/1992 | N11: =SUMIF(D3:D22,"أنثى",I3:I22) -> 73087.5
A12: 10 | B12: سامر | C12: علواني | D12: ذكر | E12: 1961-06-24 | F12: 19 | G12: مدير | H12: تسويق | I12: 17187.5 | J12: 1/1/1992
A13: 11 | B13: عائشة | C13: الطويل | D13: أنثى | E13: 1938-02-27 | F13: 8 | G13: عامل | H13: انتاج | I13: 4050 | J13: 1/1/1992
A14: 12 | B14: ماجد | C14: درغام | D14: ذكر | E14: 1948-06-21 | F14: 12 | G14: أمين صندوق | H14: تسويق | I14: 7687.5 | J14: 1/1/1991 | N14: الراتب الكلي عند اول تعيين
A15: 13 | B15: ثائر | C15: المحمد | D15: ذكر | E15: 1959-10-06 | F15: 16 | G15: مدير | H15: تسويق | I15: 13718.75 | J15: 1/1/1990 | N15: =N11+N7 -> 195618.75
A16: 14 | B16: سامي | C16: الفارابي | D16: ذكر | E16: 1961-08-25 | F16: 14 | G16: عامل | H16: انتاج | I16: 9450 | J16: 1/1/1990
A17: 15 | B17: سميرة | C17: المحجوب | D17: أنثى | E17: 1964-09-20 | F17: 12 | G17: مندوب | H17: تسويق | I17: 6937.5 | J17: 1/1/1987 | N17: =N15=I24 -> TRUE
A18: 16 | B18: فاطمة | C18: خالد | D18: أنثى | E18: 1951-01-13 | F18: 16 | G18: مندوب | H18: تسويق | I18: 6262.5 | J18: 1/1/1987
A19: 17 | B19: دانة | C19: سليمان | D19: أنثى | E19: 1968-08-18 | F19: 16 | G19: مدير | H19: تسويق | I19: 16500 | J19: 1/1/1986
A20: 18 | B20: باسمة | C20: قدري | D20: أنثى | E20: 1940-08-21 | F20: 12 | G20: كاتب | H20: مشتريات | I20: 4312.5 | J20: 1/1/1982
A21: 19 | B21: اسماعيل | C21: امجد | D21: ذكر | E21: 1934-02-04 | F21: 15 | G21: مندوب | H21: تسويق | I21: 5625 | J21: 1/1/1982
A22: 20 | B22: محمد | C22: عوض | D22: ذكر | E22: 1965-01-09 | F22: 16 | G22: مدير | H22: انتاج | I22: 10050 | J22: 1/1/1981
I24: =SUM(I3:I22) -> 195618.75
A26: 20 | B26: محمد | C26: عوض | D26: ذكر | E26: 23751 | F26: 16 | G26: مدير | H26: انتاج | I26: 10050 | J26: 81 | K26: For Test

Sheet tst1 (hidden)
A1: 1000 | B1: invest | D1: 1000 | E1: =D1*(1+0.08)^3 -> 1259.712 | L1: Suppose you have $1,000.00 in an investment account. The account pays 8 percent interest and this interest is compounded annually. How much will the investment be worth at the end of three years? There are two ways to find the amount: Use a Fixed Formula Create a Function Macro to Determine Compound Interest
A2: 0.08 | B2: intrest
A3: 3 | B3: pri | D3: 1000 | E3: =D3+(D3*0.08) -> 1080 | F3: 1000 | G3: =E3+(E3*0.08) -> 1166.4 | H3: 1000 | I3: =G3+(G3*0.08) -> 1259.712
B5: =Yearly_Rate(A1,A2,A3) -> 1259.712 | O5: Cell Value -------------- A1 1000.00 A2 .08 A3 3.00 These values represent the following: A1: Present value of the investment A2: Interest rate A3: Number of investment periods In any blank cell, type the following formula =Yearly_Rate(A1,A2,A3)
L6: Module
F7: Function Yearly_Rate(PV As Double, R As Double, N As Double) As Double Yearly_Rate = PV * (1 + R) ^ N 'Performs computation End Function
F13: https://support.microsoft.com/sr-latn-me/help/141695/xl-how-to-calculate-compound-interest
F15: PV is present value, R is the interest rate, and N is the number of investment periods.
